Cogmind - Beta 16 @@@ ROGUE MODE // 2026.01.09 @ 19:40:02 Player: Yellow Fin Result: Destroyed by Executioner with Helical Railgun Performance ------------- Evolutions (8) 4000 Regions Visited (17) 3400 Robots Destroyed (162) 810 Value Destroyed (4629) 4629 Prototype IDs (113) 2260 Alien Tech Used (1) 200 Bonus (3547) 3547 TOTAL SCORE: 18846 Bonus ------- High Alert Combat Kills 61 Follower Combat Kills 386 Forged Quantum Companion 1000 Registered with UFD 300 Met Optimus in HQ 500 Met Data Miner 300 Met Optimus at Protoforge 1000 Cogmind --------- Core Integrity 0/1450 Matter 300/300 Energy 247/260 System Corruption 0% Temperature Cool (8) Movement Walking (106) Location -2/Protoforge Parts ------- > --- POWER (2) -------- Light Antimatter Reactor Light Quantum Reactor > --- PROPULSION (5) --- Biometal Leg Biometal Leg Biometal Leg Enhanced Biometal Leg Enhanced Biometal Leg > --- UTILITY (14) ----- Light Humpback Experimental Optical Array Advanced Sensor Array Advanced Signal Interpreter Experimental Targeting Computer Experimental Core Analyzer Experimental Core Analyzer Advanced Kinecellerator Heavy Armor Plating Makeshift Medium Armor Plating Centrium Light Armor Plating Graphene Brace > --- WEAPON (2) ------- Helical Railgun Quantum Companion > --- INVENTORY (25) --- Makeshift Thermal Plating Medium Insulated Plating UFD Drillbomb UFD Drillbomb Peak State ------------ > --- POWER ------------ Improved Fusion Compressor Light Quantum Reactor > --- PROPULSION ------- Biometal Leg Biometal Leg Cooled Field Propulsion Drive Cooled Impulse Thruster Cooled Q-thruster > --- UTILITY ---------- 0bPrime Scrap Suit Advanced Cryofiber Web Medium Storage Unit Energy Well Gravity Neutralizer Long-range Sensor Array Advanced Signal Interpreter Surveybot 17 Chip Experimental Core Analyzer Experimental Reaction Control System Advanced Phase Shifter Centrium Medium Armor Plating Graphene Brace > --- WEAPON ----------- Heavy Machine Gun Quantum Companion > --- INVENTORY -------- UFD Drillbomb [Rating: 188] Favorites ----------- Power Light Fission Core Engine Heavy Ion Engine Power Core Light Fission Core Reactor Micro Antimatter Reactor Propulsion Wheel Treads Medium Treads Leg Biometal Leg Wheel Wheel Flight Unit Improved Flight Unit Utility Hacking Suite Device Advanced Terrain Scanner Storage Medium Storage Unit Processor Surveybot 17 Chip Hackware Hacking Suite Protection Medium Armor Plating Weapon Autogun Energy Gun Medium Laser Ballistic Gun Autogun Ballistic Cannon Light Cannon Launcher Mini Grenade Launcher Special Weapon Mining Laser Impact Weapon Maul Slashing Weapon Companion Sword Piercing Weapon Plasma Lance Build | -11 -10 -10 -9 -9 -9 -9 -6 -6 -6 -6 -5 -5 -4 -3 -2 -2 -2 ------- Run | Yrd Mat Min Mat Sto Rec Scr Fac Low Low Dat Pro Fac Fac Res Res Qua Frg Slots Evolved 16 | . . . 2 . . . 6 . . . . 2 2 2 2 . . Power 1 | . . . . . . . . . . . . . 1 . . . . Propulsion 3 | . . . . . . . 3 . . . . . . . . . . Utility 12 | . . . 2 . . . 3 . . . . 2 1 2 2 . . Weapon . | . . . . . . . . . . . . . . . . . . Parts Attached 207 | 8 10 11 27 14 . 7 16 . 1 . 2 14 11 8 9 3 66 Power 30 | 2 2 3 3 3 . . 2 . . . . 2 1 1 2 . 9 Engine 14 | 2 2 3 3 3 . . . . . . . 1 . . . . . Core 5 | . . . . . . . 2 . . . . 1 1 . . . 1 Reactor 11 | . . . . . . . . . . . . . . 1 2 . 8 Propulsion 61 | 2 2 4 8 4 . . 5 . . . . 3 4 2 4 . 23 Treads 2 | . . . . . . . . . . . . . . . . . 2 Leg 16 | . . . . . . . . . . . . . . . . . 16 Wheel 19 | 2 2 4 8 3 . . . . . . . . . . . . . Hover . | . . . . . . . . . . . . . . . . . . Flight 24 | . . . . 1 . . 5 . . . . 3 4 2 4 . 5 Utility 87 | 2 1 2 6 3 . 5 9 . 1 . 2 9 5 5 3 2 32 Device 31 | 1 . 2 1 1 . 2 3 . 1 . . 2 2 2 1 2 11 Storage 8 | 1 1 . 1 . . 1 1 . . . . 1 . . . . 2 Processor 11 | . . . 1 . . 1 3 . . . . . . . . . 6 Hackware 18 | . . . . . . 1 2 . . . 2 5 3 3 2 . . Protection 19 | . . . 3 2 . . . . . . . 1 . . . . 13 Artifact . | . . . . . . . . . . . . . . . . . . Weapon 29 | 2 5 2 10 4 . 2 . . . . . . 1 . . 1 2 Energy Gun 3 | . 2 . 1 . . . . . . . . . . . . . . Energy Cannon . | . . . . . . . . . . . . . . . . . . Ballistic Gun 15 | 2 2 1 7 2 . . . . . . . . . . . . 1 Ballistic Cannon 4 | . . 1 2 1 . . . . . . . . . . . . . Launcher 2 | . . . . . . 1 . . . . . . 1 . . . . Special Weapon 1 | . 1 . . . . . . . . . . . . . . . . Impact Weapon 1 | . . . . 1 . . . . . . . . . . . . . Slashing Weapon 2 | . . . . . . 1 . . . . . . . . . 1 . Piercing Weapon 1 | . . . . . . . . . . . . . . . . . 1 Special Melee Weapon . | . . . . . . . . . . . . . . . . . . Unidentified Prototypes 18 | . . . 2 2 . 1 1 . . . . . 1 2 2 2 5 Corrupted Parts 3 | . . . . . . 1 . . . . 2 . . . . . . System Corruption 8 | . . . . . . 2 . . . . 6 . . . . . . Parts Lost 51 | . 1 4 4 . . . 3 . . . . 1 . . 1 . 37 Power 11 | . 1 2 . . . . 1 . . . . . . . 1 . 6 Propulsion 16 | . . 1 1 . . . 1 . . . . 1 . . . . 12 Utility 22 | . . 1 2 . . . 1 . . . . . . . . . 18 Weapon 2 | . . . 1 . . . . . . . . . . . . . 1 Highest Loss Streak 28 | . 1 2 2 . . . 2 . . . . 1 . . 1 . 28 To Critical Strikes . | . . . . . . . . . . . . . . . . . . Average Backups 11 | 3 9 14 17 19 19 19 8 9 8 9 9 8 9 9 8 9 1 Power 1 | . 1 . 2 1 1 1 . . . . . 1 . . 1 . . Propulsion 2 | 1 3 6 6 5 5 5 . . . . . . 1 1 . 2 . Utility 6 | . 3 5 4 7 7 11 7 9 8 8 8 7 8 6 6 7 1 Weapon 1 | . 2 2 4 5 4 1 . . . . . . . . . . . Tool/Special . | . . . . . . . . . . . . . . . . . . Unused Backups 39 | 2 4 1 8 5 . 3 . . 1 . 1 7 1 2 1 . 3 Power 1 | . . . 1 . . . . . . . . . . . . . . Propulsion 12 | . 4 1 1 4 . . . . . . . . . 1 . . 1 Utility 18 | 1 . . 1 1 . 3 . . 1 . . 6 1 1 1 . 2 Weapon 7 | 1 . . 5 . . . . . . . . 1 . . . . . Tool/Special 1 | . . . . . . . . . . . 1 . . . . . . Average Slot Usage (%) 96 | . 100 95 95 100 100 99 98 100 100 100 100 98 98 99 99 100 80 Engine 5 | . 14 13 8 11 11 11 . . . . . 2 . . . . . Core 2 | . . . . . . . 5 6 6 6 6 2 9 8 . . 1 Wheel 10 | . 28 27 22 22 22 22 . . . . . . . . . . . Flight 12 | . . . . . . . 32 33 33 33 33 28 24 23 21 21 10 Device 13 | . 14 11 15 11 11 11 12 13 13 13 13 8 14 18 21 25 17 Storage 7 | . 14 14 11 11 11 11 6 6 6 6 6 5 5 4 4 4 4 Processor 10 | . . . 10 11 11 11 12 13 13 13 13 11 10 9 8 8 14 Hackware 10 | . . . . . . 10 12 13 13 13 13 24 21 22 25 21 5 Protection 2 | . . . 4 11 11 . . . . . . . . . . . 6 Energy Gun 1 | . 10 13 . . . . . . . . . . . . . . . Ballistic Gun 8 | . 17 10 17 21 22 17 . . . . . . . . . . . Launcher 2 | . . . . . . 2 6 6 6 6 6 5 5 4 4 4 1 Slashing Weapon 2 | . . . . . . 1 6 6 6 6 6 4 5 4 4 4 4 Peak Build Rating 188 | 8 8 8 16 19 19 31 62 61 62 62 62 85 105 123 149 157 188 Average Rating 63 | 5 7 7 13 17 18 24 59 61 61 62 61 76 99 117 138 151 142 On Entrance 57 | . 8 8 8 16 18 19 31 61 61 62 62 59 84 105 123 148 157 Avg Prop Armor Cover (%) 14 | . . . . . . . . . . . . 2 . 1 . . 19 Naked Turns . | . . . . . . . . . . . . . . . . . . Heaviest Build 110 | 13 30 31 58 63 62 55 24 22 22 22 22 27 35 37 41 41 110 Greatest Support 150 | 20 20 20 20 20 20 20 26 26 26 26 26 40 49 52 55 62 150 Greatest Overweight (x) 3 | 1 1 2 2 3 3 2 . . . . . 1 . 1 1 . 1 Average Overweight (x) . | . . 1 1 2 3 2 . . . . . . . . . . . Largest Inventory Capacity 25 | 8 15 15 20 20 20 20 20 10 10 10 10 10 10 10 10 10 25 Average Capacity 14 | 7 11 15 19 20 20 20 10 10 10 10 10 10 10 10 10 10 11 Most Carried 23 | 8 13 15 20 20 20 20 18 10 10 10 10 10 10 10 10 10 23 Average Carried 12 | 3 9 14 17 19 19 19 9 10 9 10 9 9 9 9 8 9 5 Final Capacity 25 | 8 15 15 20 20 20 20 10 10 10 10 10 10 10 10 10 10 25 Final Carried 22 | 8 13 15 19 20 18 19 10 10 10 10 10 10 10 10 10 10 22 Scrap Suit Usage (%) 3 | . . . . . . . . . . . . . . . . . 25 Parts Cannibalized 16 | . . . . . . . . . . . . . . . . . 16 Class Distribution -------------------- 41% | Mutant 20% | Hacker-Scout 10% | Wizard-Scout 8% | Scavenger-Mutant 8% | Hacker-Sprinter 3% | Scout Dominant Class ---------------- Mutant | -10/Materials Mutant | -10/Mines Mutant | -9/Materials Mutant | -9/Storage Mutant | -9/Recycling Mutant | -9/Scraptown Scout | -6/Factory Hacker-Scout | -6/Lower Caves Hacker-Scout | -6/Lower Caves Hacker-Scout | -6/Data Miner Hacker-Scout | -5/Proximity Caves Hacker-Scout | -5/Factory Hacker-Scout | -4/Factory Wizard-Scout | -3/Research Wizard-Scout | -2/Research Wizard-Scout | -2/Quarantine Scavenger-Mutant | -2/Protoforge Resources | -11 -10 -10 -9 -9 -9 -9 -6 -6 -6 -6 -5 -5 -4 -3 -2 -2 -2 ----------- Run | Yrd Mat Min Mat Sto Rec Scr Fac Low Low Dat Pro Fac Fac Res Res Qua Frg Matter Collected 5913 | 334 183 273 1234 623 177 64 280 . 88 . 40 230 209 431 30 154 1563 Remotely . | . . . . . . . . . . . . . . . . . . Salvage Created 5803 | 207 368 344 1365 471 162 . 148 . . . . 182 100 199 36 147 2074 Parts 351 | 15 13 30 122 32 11 . 11 . . . . 10 4 5 2 6 90 Haulers Intercepted 11 | . 1 . 5 5 . . . . . . . . . . . . . Recyclers Shooed 3 | 1 . . . 2 . . . . . . . . . . . . . Parts Field Recycled . | . . . . . . . . . . . . . . . . . . Retrieved Matter . | . . . . . . . . . . . . . . . . . . Parts Self-Destructed . | . . . . . . . . . . . . . . . . . . Prevented . | . . . . . . . . . . . . . . . . . . Parts Restored . | . . . . . . . . . . . . . . . . . . Kills | -11 -10 -10 -9 -9 -9 -9 -6 -6 -6 -6 -5 -5 -4 -3 -2 -2 -2 ------- Run | Yrd Mat Min Mat Sto Rec Scr Fac Low Low Dat Pro Fac Fac Res Res Qua Frg Combat Hostiles Destroyed 97 | . 6 13 33 3 3 . . . . . . . . . . . 39 Melee 32 | . . . . . . . . . . . . . . . . . 32 Guns 49 | . 6 13 23 3 3 . . . . . . . . . . . 1 Cannons 13 | . . . 9 . . . . . . . . . . . . . 4 AOE 1 | . . . 1 . . . . . . . . . . . . . . Classes Destroyed 16 | 3 4 . 4 . . . . . . . . . . . . . 5 Worker 10 | 2 1 . 2 . . . 1 . . . . 1 1 . . 2 . Builder 8 | . . . 3 . . . 2 . . . . 2 . . . . 1 Tunneler 7 | 5 . 2 . . . . . . . . . . . . . . . Hauler 11 | . 1 . 5 5 . . . . . . . . . . . . . Recycler 5 | 1 . . . 1 . . 1 . . . . . . 1 . 1 . Mechanic 1 | . . . 1 . . . . . . . . . . . . . . Operator 6 | . . . 4 2 . . . . . . . . . . . . . Drone 17 | . . . . . . . . . . . . . . . . . 17 Watcher 17 | . 1 . 4 2 . . . . . . . 4 2 1 1 . 2 Swarmer 27 | . 1 8 17 1 . . . . . . . . . . . . . Grunt 20 | . 5 5 7 2 . . . . . . . . . . . . 1 Duelist 1 | . . . . . . . . . . . . . . . . . 1 Sentry 13 | . . . 9 . 3 . . . . . . . . . . . 1 Hunter 8 | . . . . . . . . . . . . . . . . . 8 Programmer 1 | . . . . . . . . . . . . . . . . . 1 Hotshot 6 | . . . . . . . . . . . . . . . . . 6 Striker 4 | . . . . . . . . . . . . . . . . . 4 Best Kill Streak 8 | 5 2 5 8 5 2 . 2 . . . . 3 1 1 1 3 7 Combat Bots Only 7 | . 2 5 5 2 2 . . . . . . . . . . . 7 Max Kills in Single Turn 2 | 1 1 2 2 2 1 . 1 . . . . 1 1 1 1 1 2 Gunslinging 1 | . . 1 1 . . . . . . . . . . . . . . Exploded 1 | . . . 1 . . . . . . . . . . . . . . Melee 1 | . . . . . . . . . . . . . . . . . 1 Uniques/NPCs Destroyed . | . . . . . . . . . . . . . . . . . . Combat | -11 -10 -10 -9 -9 -9 -9 -6 -6 -6 -6 -5 -5 -4 -3 -2 -2 -2 -------- Run | Yrd Mat Min Mat Sto Rec Scr Fac Low Low Dat Pro Fac Fac Res Res Qua Frg Hostile Shots Fired 695 | . 36 56 138 12 10 . 3 . . . 4 13 3 5 2 2 411 Missed 240 | . 10 14 37 3 4 . 3 . . . 3 2 2 3 2 1 156 Deflected 6 | . . . . . . . . . . . . . . . . . 6 Hits 455 | . 26 42 101 9 6 . . . . . 1 11 1 2 . 1 255 Melee 13 | . . . . . . . . . . . . . . . . . 13 Projectile 442 | . 26 42 101 9 6 . . . . . 1 11 1 2 . 1 242 Critical Strikes 22 | . . 2 1 . . . . . . . . . . . . . 19 Actively Blocked 19 | . . . . . . . . . . . . . . . . . 19 Damage Taken 9806 | . 321 429 1174 120 96 . 78 . . . 27 231 16 66 109 . 7139 Core 1989 | . 89 88 183 . 31 . 24 . . . . 80 16 14 . . 1464 Absorbed by Shields 93 | . . . . . . . . . . . . 41 . . . . 52 Ignored by Resistances 85 | . . . . . . . . . . . . . . . . . 85 Regen/Repaired (Parts) 219 | . . . . . . . . . . . . 28 . . 40 . 151 Core Remaining (%) 80 | 100 . 29 . . . 46 . . . . 97 92 98 98 . . . Volleys Fired 328 | 27 39 44 122 50 16 . 9 . . . 3 3 6 4 2 . 3 Largest 2 | 2 2 2 2 2 2 . 1 . . . 1 1 1 1 1 . 1 Hottest 100 | 40 100 100 60 46 46 . 30 . . . 30 30 80 80 80 . 80 Shots Fired 604 | 54 75 85 240 88 32 . 9 . . . 3 3 6 4 2 . 3 Gun 481 | 54 72 82 164 76 32 . . . . . . . . . . . 1 Cannon 88 | . . . 76 12 . . . . . . . . . . . . . Launcher 29 | . . . . . . . 9 . . . 3 3 6 4 2 . 2 Special 6 | . 3 3 . . . . . . . . . . . . . . . Kinetic 506 | 54 50 41 240 88 32 . . . . . . . . . . . 1 Thermal 69 | . 25 44 . . . . . . . . . . . . . . . Explosive 29 | . . . . . . . 9 . . . 3 3 6 4 2 . 2 Electromagnetic . | . . . . . . . . . . . . . . . . . . Robot Hit Streak 20 | 11 6 11 20 9 10 . . . . . . . . . . . 10 Robot Miss Streak 4 | 4 4 4 4 3 2 . . . . . . . . . . . . Penetration Max 1 | . . . . . . . . . . . . . . . . . 1 Secondary Targets 4 | . . 1 1 1 1 . . . . . . . . . . . . Max Gunslinging Chain 1 | . . 1 1 1 1 . . . . . . . . . . . . Autonomous 12 | . . . . . . . . . . . . . . . . . 12 Shots Hit Robots 466 | 36 44 54 140 49 26 . 5 . . . . 11 4 9 1 4 83 Core Hits 211 | 15 18 21 66 18 7 . 4 . . . . 2 2 4 1 3 50 Critical Kills 1 | . . . 1 . . . . . . . . . . . . . . Critical Parts Destroyed 2 | . 1 . . . 1 . . . . . . . . . . . . Critical Strikes 9 | . 2 3 1 . 1 . . . . . . . . . . . 2 Burn 4 | . 1 3 . . . . . . . . . . . . . . . Destroy 3 | . 1 . 1 . 1 . . . . . . . . . . . . Melee Attacks 382 | . . . . 2 . . 29 . 1 . 7 85 53 36 36 11 122 Impact 2 | . . . . 2 . . . . . . . . . . . . . Slashing 380 | . . . . . . . 29 . 1 . 7 85 53 36 36 11 122 Piercing . | . . . . . . . . . . . . . . . . . . Sneak Attacks 51 | . . . . . . . 4 . . . . 6 2 3 1 3 32 Combat Hostiles 2 | . . . . . . . . . . . . . . . . . 2 Follow-up Attacks 8 | . . . . . . . . . . . . . . . . . 8 Damage Inflicted 15253 | 308 515 675 2233 797 400 . 625 . . . . 756 322 530 120 324 7648 Guns 4306 | 308 515 675 1535 797 400 . . . . . . . . . . . 76 Cannons 1673 | . . . 650 . . . . . . . . . . . . . 1023 Explosions 398 | . . . 48 . . . 256 . . . . . . 15 . . 79 Melee 8876 | . . . . . . . 369 . . . . 756 322 515 120 324 6470 Ramming . | . . . . . . . . . . . . . . . . . . Kinetic 4503 | 308 340 397 2185 797 400 . . . . . . . . . . . 76 Thermal 709 | . 175 278 . . . . 256 . . . . . . . . . . Explosive 142 | . . . 48 . . . . . . . . . . 15 . . 79 Electromagnetic . | . . . . . . . . . . . . . . . . . . Impact . | . . . . . . . . . . . . . . . . . . Slashing 8876 | . . . . . . . 369 . . . . 756 322 515 120 324 6470 Piercing . | . . . . . . . . . . . . . . . . . . Phasic 1023 | . . . . . . . . . . . . . . . . . 1023 Highest Corruption 6 | . . . 4 4 4 6 1 1 1 . 6 . . . . . 1 Average Corruption 3 | . . . 3 4 4 5 1 1 1 . 3 . . . . . 1 Corruption Purged 2 | . . . . . . . . . 1 . . . . . . . 1 Corruption Blocked . | . . . . . . . . . . . . . . . . . . Effects 72 | . . . 29 24 15 . 2 2 . . . . . . . . . Message Errors 14 | . . . 4 4 4 . 1 1 . . . . . . . . . Matter Fused 20 | . . . 10 7 2 . . 1 . . . . . . . . . Heat Flow Errors 10 | . . . 2 4 3 . 1 . . . . . . . . . . Energy Discharges 11 | . . . 5 4 2 . . . . . . . . . . . . Parts Rejected 1 | . . . . 1 . . . . . . . . . . . . . Data Loss (minor) 4 | . . . 2 1 1 . . . . . . . . . . . . Data Loss (major) 2 | . . . . 2 . . . . . . . . . . . . . Misfires 5 | . . . 4 . 1 . . . . . . . . . . . . Alerts 4 | . . . 2 1 1 . . . . . . . . . . . . Weapon Failures 1 | . . . . . 1 . . . . . . . . . . . . Overload Shots . | . . . . . . . . . . . . . . . . . . Overflow Damage 1776 | . . . 20 . . . 151 . . . . 318 70 107 . 30 1080 Projectiles 70 | . . . 9 . . . . . . . . . . . . . 61 Explosions 71 | . . . 11 . . . 46 . . . . 14 . . . . . Melee 1635 | . . . . . . . 105 . . . . 304 70 107 . 30 1019 Knockbacks 7 | . . . 7 . . . . . . . . . . . . . . Impact . | . . . . . . . . . . . . . . . . . . Kinetic 7 | . . . 7 . . . . . . . . . . . . . . Secondary . | . . . . . . . . . . . . . . . . . . Self-Inflicted Damage 184 | . . . 140 . . . . . . . . 44 . . . . . Shots 3 | . . . 2 . . . . . . . . 1 . . . . . Rammed . | . . . . . . . . . . . . . . . . . . Targets Rammed . | . . . . . . . . . . . . . . . . . . Kicked . | . . . . . . . . . . . . . . . . . . Crushed . | . . . . . . . . . . . . . . . . . . Highest Temperature 240 | . 123 165 136 224 207 . 229 . . . 5 8 176 240 18 . 7 Average Temperature 46 | . 44 44 24 27 47 . 83 . . . 3 6 79 112 11 . 7 Received Heat Transfer 1359 | . 144 150 240 48 18 . . . . . 9 39 . 9 . . 702 Effects 1 | . . . . . . . . . . . . . . 1 . . . Energy Bleed 1 | . . . . . . . . . . . . . . 1 . . . Siege Activations . | . . . . . . . . . . . . . . . . . . Martial Activations . | . . . . . . . . . . . . . . . . . . Shielding Activations 1 | . . . . . . . . . . . . . . . . . 1 Total Turns 2 | . . . . . . . . . . . . . . . . . 2 Longest Duration 2 | . . . . . . . . . . . . . . . . . 2 Robots Disrupted 4 | . . . . . . . . . . . . 1 . . . . 3 Combat Hostiles 3 | . . . . . . . . . . . . . . . . . 3 Robots Corrupted . | . . . . . . . . . . . . . . . . . . Combat Hostiles . | . . . . . . . . . . . . . . . . . . Parts Fried . | . . . . . . . . . . . . . . . . . . Impact Corruptions . | . . . . . . . . . . . . . . . . . . Robots Melted . | . . . . . . . . . . . . . . . . . . Combat Hostiles . | . . . . . . . . . . . . . . . . . . Parts Melted 5 | . 3 2 . . . . . . . . . . . . . . . Heat Transferred 1878 | . 592 1036 . . . . 250 . . . . . . . . . . Parts Sabotaged . | . . . . . . . . . . . . . . . . . . Parts Stolen . | . . . . . . . . . . . . . . . . . . Parts Stripped 18 | . . . . . . . . . . . . . . . . . 18 Power Chain Reactions . | . . . . . . . . . . . . . . . . . . Alert | -11 -10 -10 -9 -9 -9 -9 -6 -6 -6 -6 -5 -5 -4 -3 -2 -2 -2 ------- Run | Yrd Mat Min Mat Sto Rec Scr Fac Low Low Dat Pro Fac Fac Res Res Qua Frg Maximum Alert Level 2 | . . . 2 2 . . . . . . . . . . . . 1 Low Security (%) 72 | 100 100 100 37 . 100 . 100 . . . . 100 100 100 100 100 40 Level 1 22 | . . . 40 79 . . . . . . . . . . . . 59 Level 2 4 | . . . 22 20 . . . . . . . . . . . . . Level 3 . | . . . . . . . . . . . . . . . . . . Level 4 . | . . . . . . . . . . . . . . . . . . Level 5 . | . . . . . . . . . . . . . . . . . . High Security . | . . . . . . . . . . . . . . . . . . Max Security . | . . . . . . . . . . . . . . . . . . Peak Influence 643 | 10 112 114 643 449 177 . 136 . . . . 78 31 100 105 78 378 Initial 265 | . . . . 265 147 . . . . . . 25 14 . 36 58 38 Average 127 | 1 44 41 274 359 117 . 48 . . . . 22 4 22 54 62 209 Influence Increases 5876 | 40 279 341 1200 702 211 . 380 . . . 120 429 223 286 340 70 1255 Destroy 0b10 Robot/C 1940 | . 120 260 740 320 60 . . . . . . . . . . . 440 Destroy 0b10 Robot/NC 425 | 40 15 10 100 55 . . 20 . . . . 35 15 10 5 15 105 Destroy Leader 446 | . 24 40 208 114 . . . . . . . 8 4 2 2 . 44 Allied During Kill 126 | . . . 10 115 1 . . . . . . . . . . . . Successful Hack 437 | . . . 12 33 . . 61 . . . . 81 55 86 39 10 60 Select Force Hacks 150 | . . . . . 150 . . . . . . . . . . . . Disable Machine 255 | . 15 . 30 60 . . 15 . . . . 15 . . . 30 90 Destroy Structure 747 | . . 1 40 5 . . 74 . . . . 170 134 98 144 15 66 Partial Spotted 195 | . . . . . . . 15 . . . . 15 . 15 90 . 60 Lose Combat Pursuer 1155 | . 105 30 60 . . . 195 . . . 120 105 15 75 60 . 390 Influence Decreases 5581 | 40 279 341 572 953 544 44 259 86 35 . 80 438 254 220 301 107 1028 Entered New Map 830 | . . . . 363 230 44 . 46 8 . . 15 17 . 30 47 30 Time Decay 3888 | 40 269 281 492 410 294 . 229 40 27 . 80 394 213 210 251 60 598 Lost Part 499 | . 10 40 40 . . . 20 . . . . 9 . . 10 . 370 Lost Ally 364 | . . 20 40 180 20 . 10 . . . . 20 24 10 10 . 30 Squads Dispatched 73 | . . . 5 2 . . 14 . . . . 15 10 12 8 . 7 Investigation 43 | . . . . . . . 10 . . . . 9 8 5 5 . 6 Extermination 14 | . . . . . . . 3 . . . . 3 2 4 2 . . Reinforcement 14 | . . . 5 1 . . 1 . . . . 3 . 2 1 . 1 Assault . | . . . . . . . . . . . . . . . . . . Garrison 2 | . . . . 1 . . . . . . . . . 1 . . . Intercept . | . . . . . . . . . . . . . . . . . . Searches Triggered . | . . . . . . . . . . . . . . . . . . Construction Impeded 2 | . . . 1 . . . 1 . . . . . . . . . . Haulers Reinforced . | . . . . . . . . . . . . . . . . . . Active Scanning Responses . | . . . . . . . . . . . . . . . . . . Cargo Convoy Interrupts 1 | . . . . . . . . . . . . 1 . . . . . Stealth | -11 -10 -10 -9 -9 -9 -9 -6 -6 -6 -6 -5 -5 -4 -3 -2 -2 -2 --------- Run | Yrd Mat Min Mat Sto Rec Scr Fac Low Low Dat Pro Fac Fac Res Res Qua Frg Distress Signals 30 | . 2 1 6 3 . . 2 . . . . 1 2 1 . . 12 Communications Jammed . | . . . . . . . . . . . . . . . . . . Distress Signals . | . . . . . . . . . . . . . . . . . . Times Spotted 273 | . 14 16 55 15 3 . 10 . . . 8 13 10 11 14 1 103 Peak Tracking Total 16 | . 5 3 6 4 2 . 13 . . . 8 4 4 5 7 1 16 Tactical Retreats 43 | . 3 2 4 . . . 6 . . . 2 4 2 2 2 . 16 ECM-based Alert Blocks 7 | . . . . . . . . . . . . . 2 . 5 . . Traps | -11 -10 -10 -9 -9 -9 -9 -6 -6 -6 -6 -5 -5 -4 -3 -2 -2 -2 ------- Run | Yrd Mat Min Mat Sto Rec Scr Fac Low Low Dat Pro Fac Fac Res Res Qua Frg Traps Triggered 13 | . 1 . 1 . . . 1 . . . . 3 2 . 2 . 3 Indirectly . | . . . . . . . . . . . . . . . . . . Trap Hack Attempts . | . . . . . . . . . . . . . . . . . . Triggered . | . . . . . . . . . . . . . . . . . . Disarmed . | . . . . . . . . . . . . . . . . . . Reprogrammed . | . . . . . . . . . . . . . . . . . . Reused . | . . . . . . . . . . . . . . . . . . Traps Extracted . | . . . . . . . . . . . . . . . . . . Installed . | . . . . . . . . . . . . . . . . . . Triggered . | . . . . . . . . . . . . . . . . . . Objects Rigged 5 | . . . . . . . 5 . . . . . . . . . . Exploded 1 | . . . . . . . 1 . . . . . . . . . . Machines | -11 -10 -10 -9 -9 -9 -9 -6 -6 -6 -6 -5 -5 -4 -3 -2 -2 -2 ---------- Run | Yrd Mat Min Mat Sto Rec Scr Fac Low Low Dat Pro Fac Fac Res Res Qua Frg Machines Disabled 18 | . 1 . 2 4 . . 1 . 1 . . 1 . . . 2 6 Max in Single Turn 5 | . 1 . 1 1 . . 1 . 1 . . 1 . . . 1 5 Garrison Access 9 | . . . . 1 . . 1 . . . . 3 2 1 1 . . Machines Repaired . | . . . . . . . . . . . . . . . . . . Machines Dismantled . | . . . . . . . . . . . . . . . . . . Machines Sabotaged . | . . . . . . . . . . . . . . . . . . Overloaded Fab Kills . | . . . . . . . . . . . . . . . . . . Hacking | -11 -10 -10 -9 -9 -9 -9 -6 -6 -6 -6 -5 -5 -4 -3 -2 -2 -2 --------- Run | Yrd Mat Min Mat Sto Rec Scr Fac Low Low Dat Pro Fac Fac Res Res Qua Frg Machines Accessed 141 | . . . 6 6 5 6 19 1 2 4 . 29 22 16 13 4 8 Terminals 63 | . . . 4 5 . . 7 . . . . 13 11 7 7 4 5 Fabricators 15 | . . . . . . . 4 . . . . 4 3 2 2 . . Repair Stations 4 | . . . . . . . . . . . . 2 . . 2 . . Recycling Units 29 | . . . . . 5 . 5 . . . . 6 5 4 1 . 3 Scanalyzers 8 | . . . 2 . . . 2 . . . . 1 1 2 . . . Garrison Access 9 | . . . . 1 . . 1 . . . . 3 2 1 1 . . Total Hacks 399 | . . . 16 15 5 49 48 1 2 25 . 70 56 34 40 14 24 Successful 276 | . . . 9 8 5 49 25 1 2 25 . 44 33 23 28 11 13 Failed 120 | . . . 6 7 . . 22 . . . . 25 23 11 12 3 11 Catastrophic 23 | . . . 1 . . . 5 . . . . 6 5 . 2 1 3 Database Lockouts 3 | . . . 1 . . . 1 . . . . 1 . . . . . Manual 167 | . . . 9 5 5 . 33 . . . . 33 32 14 21 4 11 Terminals 190 | . . . 9 14 . . 20 . . . . 34 35 17 29 14 18 Fabricators 44 | . . . . . . . 9 . . . . 16 9 6 4 . . Repair Stations 13 | . . . . . . . . . . . . 8 . . 5 . . Recycling Units 41 | . . . . . 5 . 12 . . . . 6 7 4 1 . 6 Scanalyzers 20 | . . . 7 . . . 6 . . . . 2 2 3 . . . Garrison Access 14 | . . . . 1 . . 1 . . . . 4 3 4 1 . . Terminal Hacks 151 | . . . 2 5 . 49 3 1 2 25 . 12 11 8 15 10 8 Record 61 | . . . . . . 48 . . 1 11 . . . . . 1 . Part Schematic 15 | . . . 1 . . . 1 . . 8 . 1 2 . 2 . . Robot Schematic 4 | . . . 1 . . . . . . 3 . . . . . . . Prototype ID Bank 4 | . . . . . . . . . . 3 . . . . . 1 . Open Door 5 | . . . . 2 . 1 . 1 1 . . . . . . . . Level Access Points 4 | . . . . . . . . . . . . 1 1 1 1 . . Branch Access Points 2 | . . . . . . . . . . . . . . . 1 1 . Machine Index 2 | . . . . . . . . . . . . . . 1 1 . . Terminal Index 5 | . . . . . . . 1 . . . . 1 1 . 1 1 . Fabricator Index 3 | . . . . . . . . . . . . 1 . . 1 1 . Recycling Unit Index 1 | . . . . . . . . . . . . 1 . . . . . Scanalyzer Index 2 | . . . . . . . . . . . . 1 1 . . . . Garrison Index 1 | . . . . . . . . . . . . 1 . . . . . Alert Level 1 | . . . . . . . . . . . . . . . . . 1 Locate Traps 19 | . . . . 3 . . . . . . . 5 3 2 2 1 3 Dispatch Records 1 | . . . . . . . . . . . . . . . 1 . . Patrol Status 2 | . . . . . . . . . . . . . . 1 1 . . Investigation Status 1 | . . . . . . . . . . . . . . . 1 . . Extermination Status 1 | . . . . . . . . . . . . . . . . . 1 Reinforcement Status 1 | . . . . . . . . . . . . . . . . . 1 Recall Investigation 1 | . . . . . . . . . . . . . 1 . . . . Recall Extermination 5 | . . . . . . . 1 . . . . . 1 1 2 . . Recall Reinforcements 2 | . . . . . . . . . . . . . . 1 . . 1 Registered Components 4 | . . . . . . . . . . . . . 1 1 1 1 . Registered Prototypes 1 | . . . . . . . . . . . . . . . . 1 . Zone Layout 3 | . . . . . . . . . . . . . . . . 2 1 Fabricator Hacks 31 | . . . . . . . 6 . . . . 11 8 3 3 . . Network Status 2 | . . . . . . . 1 . . . . . 1 . . . . Load Schematic 19 | . . . . . . . 4 . . . . 7 4 2 2 . . Build 10 | . . . . . . . 1 . . . . 4 3 1 1 . . Repair Station Hacks 9 | . . . . . . . . . . . . 5 . . 4 . . Scan Component 5 | . . . . . . . . . . . . 3 . . 2 . . Repair 4 | . . . . . . . . . . . . 2 . . 2 . . Recycling Unit Hacks . | . . . . . . . . . . . . . . . . . . Scanalyzer 17 | . . . 6 . . . 5 . . . . 1 2 3 . . . Insert Component 5 | . . . 1 . . . 2 . . . . . 1 1 . . . Analyze 6 | . . . 1 . . . 3 . . . . . 1 1 . . . Retrieve Study 6 | . . . 4 . . . . . . . . 1 . 1 . . . Garrison Access Hacks 9 | . . . . 1 . . 1 . . . . 3 2 1 1 . . Seal Access 9 | . . . . 1 . . 1 . . . . 3 2 1 1 . . Unauthorized Hacks 59 | . . . 1 2 5 . 10 . . . . 12 10 8 5 1 5 Terminals 22 | . . . 1 2 . . 3 . . . . 3 4 3 3 1 2 Assimilate 13 | . . . . 1 . . 1 . . . . 2 4 3 1 . 1 Botnet 8 | . . . 1 1 . . 1 . . . . 1 . . 2 1 1 Detonate 1 | . . . . . . . 1 . . . . . . . . . . Fabricators 8 | . . . . . . . 2 . . . . 3 1 1 1 . . Recompile 8 | . . . . . . . 2 . . . . 3 1 1 1 . . Repair Stations . | . . . . . . . . . . . . . . . . . . Recycling Units 29 | . . . . . 5 . 5 . . . . 6 5 4 1 . 3 Tunnel 5 | . . . . . 5 . . . . . . . . . . . . Fedlink 23 | . . . . . . . 5 . . . . 6 5 4 1 . 2 Scraphulk 1 | . . . . . . . . . . . . . . . . . 1 Scanalyzers . | . . . . . . . . . . . . . . . . . . Garrison Access . | . . . . . . . . . . . . . . . . . . Data Cores Recovered 3 | . . . 1 2 . . . . . . . . . . . . . Used . | . . . . . . . . . . . . . . . . . . Hacking Detections 65 | . . . 3 3 . . 12 . . . . 16 9 6 7 3 6 Full Trace Events 8 | . . . . . . . 3 . . . . . 2 . 1 . 2 Feedback Events 1 | . . . . . . . 1 . . . . . . . . . . Corruption 1 | . . . . . . . 1 . . . . . . . . . . Feedback Blocked 1 | . . . . . . . . . . . . . . . 1 . . Robot Schematics Acquired 4 | . . . 1 . . . . . . 3 . . . . . . . Robots Built . | . . . . . . . . . . . . . . . . . . Authchips . | . . . . . . . . . . . . . . . . . . Time . | . . . . . . . . . . . . . . . . . . Total Robot Build Rating . | . . . . . . . . . . . . . . . . . . Part Schematics Acquired 20 | . . . 2 . . . 3 . . 8 . 1 3 1 2 . . Parts Built 11 | . . . . . . . 1 . . . . 5 3 1 1 . . Authchips 10 | . . . . . . . 1 . . . . 4 3 1 1 . . Time 736 | . . . . . . . 67 . . . . 169 324 102 74 . . Total Part Build Rating 58 | . . . . . . . 4 . . . . 23 14 8 9 . . Part Studies Acquired 6 | . . . 4 . . . . . . . . 1 . 1 . . . Parts Repaired 4 | . . . . . . . . . . . . 2 . . 2 . . Time 181 | . . . . . . . . . . . . 66 . . 115 . . Parts Recycled . | . . . . . . . . . . . . . . . . . . Recycled Matter . | . . . . . . . . . . . . . . . . . . Retrieved Matter . | . . . . . . . . . . . . . . . . . . Retrieved Components . | . . . . . . . . . . . . . . . . . . Parts Scanalyzed 5 | . . . 1 . . . 2 . . . . . 1 1 . . . Part Schematics Acquired 5 | . . . 1 . . . 2 . . . . . 1 1 . . . Parts Damaged 1 | . . . . . . . . . . . . . . 1 . . . Bothacking | -11 -10 -10 -9 -9 -9 -9 -6 -6 -6 -6 -5 -5 -4 -3 -2 -2 -2 ------------ Run | Yrd Mat Min Mat Sto Rec Scr Fac Low Low Dat Pro Fac Fac Res Res Qua Frg Used RIF Installer . | . . . . . . . . . . . . . . . . . . Robots Hacked . | . . . . . . . . . . . . . . . . . . Non-combat . | . . . . . . . . . . . . . . . . . . Combat . | . . . . . . . . . . . . . . . . . . Robot Hacks Applied . | . . . . . . . . . . . . . . . . . . Relay Couplers Released . | . . . . . . . . . . . . . . . . . . Fabnet Peak Effective % . | . . . . . . . . . . . . . . . . . . Robots Rewired . | . . . . . . . . . . . . . . . . . . Allies Hacked . | . . . . . . . . . . . . . . . . . . Hacks Repelled . | . . . . . . . . . . . . . . . . . . Allies | -11 -10 -10 -9 -9 -9 -9 -6 -6 -6 -6 -5 -5 -4 -3 -2 -2 -2 -------- Run | Yrd Mat Min Mat Sto Rec Scr Fac Low Low Dat Pro Fac Fac Res Res Qua Frg Total Allies 25 | . . 3 . 10 . . 1 . . . . 2 4 2 1 . 2 Largest Group 10 | . . 3 2 10 1 . 1 . . . . 1 2 1 1 . 2 Highest-Rated Group 150 | . . 40 24 88 16 . 26 . . . . 26 71 26 26 . 150 Highest-Rated Ally 139 | . . 16 16 16 16 . 26 . . . . 26 45 26 26 . 139 Total Orders 3 | . . . . . . . . . . . . 1 . . 2 . . STAY 2 | . . . . . . . . . . . . 1 . . 1 . . FOLLOW 1 | . . . . . . . . . . . . . . . 1 . . Ally Attacks 123 | . . 8 27 73 6 . . . . . . . . . . . 9 Total Damage 1481 | . . 42 227 759 80 . . . . . . . . . . . 373 Kills 21 | . . 1 5 14 . . . . . . . . . . . . 1 Allies Corrupted . | . . . . . . . . . . . . . . . . . . Allies Melted 1 | . . . . . . . . . . . . . . . . . 1 Intel | -11 -10 -10 -9 -9 -9 -9 -6 -6 -6 -6 -5 -5 -4 -3 -2 -2 -2 ------- Run | Yrd Mat Min Mat Sto Rec Scr Fac Low Low Dat Pro Fac Fac Res Res Qua Frg Active Infowar (turns) 12058 | 27 736 560 1517 988 647 1400 785 93 141 25 290 1465 869 742 547 138 1088 Optics 273 | . . . . . . . . . . . . . . . . . 273 Sensors 6164 | . . . . . . . 775 93 141 25 288 1463 869 742 547 138 1083 Terrain 4560 | . . . . . . . 772 93 92 25 290 938 850 732 540 100 128 Structural 4579 | . . . 1517 988 647 1400 13 . . . . . 3 6 5 . . Seismic 1941 | 27 736 560 618 . . . . . . . . . . . . . . ECM 32 | . . . . . . . . . . . . . 12 11 9 . . Robot Analysis Total . | . . . . . . . . . . . . . . . . . . Derelict Logs Recovered 3 | . . 1 . . . . . 2 . . . . . . . . . Drone Launches . | . . . . . . . . . . . . . . . . . . Drone Recoveries . | . . . . . . . . . . . . . . . . . . Exploration | -11 -10 -10 -9 -9 -9 -9 -6 -6 -6 -6 -5 -5 -4 -3 -2 -2 -2 ------------- Run | Yrd Mat Min Mat Sto Rec Scr Fac Low Low Dat Pro Fac Fac Res Res Qua Frg Turns Passed 13207 | 188 736 687 1517 988 647 1405 785 93 141 25 291 1498 869 742 547 138 1910 Spaces Moved 20061 | 120 599 503 871 692 507 1376 1841 308 386 89 658 3371 2125 1767 1564 359 2925 Core 10 | 10 . . . . . . . . . . . . . . . . . Treads 20 | . . . . . . . . . . . . . . . . . 20 Legs 525 | . . . . . . . . . . . . . . . . . 525 Wheels 4658 | 110 599 503 871 692 507 1376 . . . . . . . . . . . Hover . | . . . . . . . . . . . . . . . . . . Flight 14848 | . . . . . . . 1841 308 386 89 658 3371 2125 1767 1564 359 2380 Fastest Speed 5 | 50 80 95 95 100 115 100 28 28 28 28 28 21 5 5 5 5 5 Average Speed 45 | 80 88 95 103 109 115 100 28 28 28 28 28 27 23 23 22 23 42 Slowest Speed 190 | 100 95 110 110 115 115 100 28 28 28 28 28 98 28 93 90 24 190 Overloaded Moves 318 | . . . . . . . . . . . . 16 41 35 97 10 119 Propulsion Burnouts . | . . . . . . . . . . . . . . . . . . Robots Hopped 32 | . . . . . . . 4 . . . . 11 3 4 1 1 8 Potential Cave-ins 29 | . . . . . . . 8 . . . 2 . 5 4 3 . 7 Cave-ins Triggered . | . . . . . . . . . . . . . . . . . . Exploration Rate (%) 66 | 7 98 96 88 97 99 93 46 58 66 75 83 60 53 52 36 43 53 Regions Visited 17 Branch Regions 10 Pre-discovered Areas 11 | . . . . . 5 4 1 . . 1 . . . . . . . Known Exits Taken 14 | . . . 1 1 1 1 1 1 1 1 1 1 1 1 1 1 . Unknown Exits Taken 3 | 1 1 1 . . . . . . . . . . . . . . . Scrap Searched 22 | . . 2 . . . 7 . 3 9 . 1 . . . . . . Spaces Dug 420 | . . . . 2 . . 107 . . . 39 82 94 36 34 5 21 Terrain Destroyed 596 | . . 1 43 2 . . 147 . . . 39 90 106 80 62 5 21 Melee 228 | . . . . . . . 22 . . . 7 71 45 23 34 5 21 Projectile 3 | . . 1 . 2 . . . . . . . . . . . . . AOE 365 | . . . 43 . . . 125 . . . 32 19 61 57 28 . . Terrain Rammed . | . . . . . . . . . . . . . . . . . . Walls Destroyed . | . . . . . . . . . . . . . . . . . . Machines Disabled . | . . . . . . . . . . . . . . . . . . Actions | -11 -10 -10 -9 -9 -9 -9 -6 -6 -6 -6 -5 -5 -4 -3 -2 -2 -2 --------- Run | Yrd Mat Min Mat Sto Rec Scr Fac Low Low Dat Pro Fac Fac Res Res Qua Frg Total 22970 | 165 731 622 1277 848 547 1407 2050 314 416 88 750 3806 2394 2035 1699 393 3428 Wait 1507 | . 64 45 193 50 16 . 139 7 25 . 79 261 174 201 68 15 170 Move 19983 | 119 598 502 870 691 506 1375 1832 307 385 88 657 3349 2118 1758 1561 356 2911 Hop 29 | . . . . . . . 4 . . . . 10 3 4 1 1 6 Pick Up 202 | 9 10 7 33 15 3 10 9 . 2 . 1 26 11 10 10 3 43 Fast Attach 47 | 7 2 3 2 1 . . . . . . . 2 2 . . 2 26 Attach 79 | . . 1 8 2 . 3 10 . . . . 11 8 4 4 . 28 Detach 10 | . . . . 1 . 2 . . . . . 2 1 . . . 4 Swap 154 | 1 8 10 20 19 1 7 12 . 2 . 2 14 13 11 12 2 20 Drop 168 | 2 10 10 29 17 5 9 6 . 1 . 1 17 5 7 5 3 41 Fire 328 | 27 39 44 122 50 16 . 9 . . . 3 3 6 4 2 . 3 Melee 374 | . . . . 2 . . 29 . 1 . 7 85 53 36 36 11 114 Ram . | . . . . . . . . . . . . . . . . . . Kick . | . . . . . . . . . . . . . . . . . . Crush . | . . . . . . . . . . . . . . . . . . Escape Stasis 35 | . . . . . . . . . . . . 23 . . . . 12 Rewire 4 | . . . . . . 1 . . . . . 3 . . . . . Trap . | . . . . . . . . . . . . . . . . . . Miscellaneous 50 | . . . . . . . . . . . . . . . . . 50 Route ------- -11/Scrapyard -10/Materials (discovered 5 exits: *Mat x3 / [*Min] / [*Sub]) -10/Mines (discovered 2 exits: *Mat x2) -9/Materials (discovered 5 exits: *Mat x3 / [*Min] / *Sto) -9/Storage (discovered 2 exits: *Mat / *Rec) -9/Recycling (discovered 2 exits: *Fac / *Scr) -9/Scraptown (discovered 2 exits: *Fac x2) -6/Factory (discovered 5 exits: Fac x3 / *Low x2) -6/Lower Caves -6/Lower Caves (discovered 2 exits: Fac / *Dat) -6/Data Miner -5/Proximity Caves -5/Factory (discovered 8 exits: *Fac x4 / *Upp x2 / [*Ext x2]) -4/Factory (discovered 5 exits: *Res x4 / [Upp]) -3/Research (discovered 6 exits: *Res x3 / *Arm / [*Tes x2]) -2/Research (discovered 5 exits: Acc x3 / *Qua x2) -2/Quarantine (discovered 2 exits: *Sec / *Frg) -2/Protoforge History --------- Turn | Location | Event 9 | -11/Scrapyard | Discovered new exit (range 14) 189 | -11/Scrapyard | Entered Materials 284 | -10/Materials | Discovered new exit (range 8) 316 | -10/Materials | Build established: Mutant 498 | -10/Materials | Discovered new exit (range 3) 773 | -10/Materials | Discovered new exit (range 14) 831 | -10/Materials | Discovered new exit (range 10) 920 | -10/Materials | Discovered new exit (range 10) 925 | -10/Materials | Entered Mines 1033 | -10/Mines | Core integrity fell below 50% 1077 | -10/Mines | Excavation squad dispatched 1077 | -10/Mines | A large section of the Mines collapsed 1303 | -10/Mines | Discovered new exit (range 4) 1463 | -10/Mines | Found a hidden stash of uninstalled traps 1473 | -10/Mines | Assisted by bots powering up and referring to "LRC-V3" 1505 | -10/Mines | Learned 4 Materials zone layouts 1505 | -10/Mines | Discovered new exit (range 10) 1612 | -10/Mines | Entered Materials 1612 | -9/Materials | Accompanied by 2 allies 1612 | -9/Materials | Evolved 2 slots: Utility x2 1613 | -9/Materials | Identified exit to Materials 1926 | -9/Materials | Discovered exit to Materials (range 16) 2320 | -9/Materials | Discovered new exit (range 7) 2476 | -9/Materials | Discovered exit to Materials (range 6) 2832 | -9/Materials | Discovered new exit (range 6) 2890 | -9/Materials | Identified exit to Storage 3065 | -9/Materials | Central database locked down 3129 | -9/Materials | Entered Storage 3164 | -9/Storage | Assisted by bots powering up and referring to "LRC-V3" 3351 | -9/Storage | Used back door to open Recycling access 3351 | -9/Storage | Discovered new exit (range 3) 3376 | -9/Storage | Lost 5 allies 3485 | -9/Storage | Build established: Commander-Mutant 3568 | -9/Storage | Lost 4 allies 3770 | -9/Storage | Garrison activated, responded to threat 3810 | -9/Storage | Build established: Mutant 3834 | -9/Storage | Discovered exit to Materials (range 6) 4116 | -9/Storage | Identified exit to Recycling 4117 | -9/Storage | Entered Recycling 4117 | -9/Recycling | Accompanied by 1 ally 4250 | -9/Recycling | Discovered new exit (range 8) 4257 | -9/Recycling | Identified exit to Factory 4503 | -9/Recycling | Core integrity fell below 50% 4738 | -9/Recycling | Scanned before Scraplab entrance 4750 | -9/Recycling | Discovered new exit (range 11) 4754 | -9/Recycling | Entered Scraplab 4763 | -9/Recycling | Identified exit to Scraptown 4764 | -9/Recycling | Entered Scraptown 4768 | -9/Scraptown | System corruption cleaned by C-Scrubber 5035 | -9/Scraptown | Discovered new exit (range 5) 5116 | -9/Scraptown | Visited Scrapoid Research Area 5124 | -9/Scraptown | Heard Great Nut preacher, LISTEN AND RECITE! 5274 | -9/Scraptown | Visited CPS Storage 5288 | -9/Scraptown | Visited Comm Corps 5359 | -9/Scraptown | Visited Awakened 5398 | -9/Scraptown | Visited Fellowship of the Rings 5448 | -9/Scraptown | Visited UFD Registry 5448 | -9/Scraptown | Registered with UFD as "Bulletripper" 5471 | -9/Scraptown | Visited LU-1G1's Boring Crew 5499 | -9/Scraptown | Visited Science Guys 5533 | -9/Scraptown | Visited Curators Association 5655 | -9/Scraptown | Visited Research Penetration Think Tank 5677 | -9/Scraptown | Visited DA-N13 Charitable Foundation 5687 | -9/Scraptown | Found DCF Scrap (30 items) 5711 | -9/Scraptown | Visited Junk Repository 5744 | -9/Scraptown | Visited Abandonware Association 5757 | -9/Scraptown | Learned abandonware demo "REPAIR.EXE" 5757 | -9/Scraptown | Learned abandonware demo "POISON.EXE" 5781 | -9/Scraptown | Visited Derelict Rescue Squad 5787 | -9/Scraptown | Found DRS Beacon 5808 | -9/Scraptown | Visited Cartography Club 5826 | -9/Scraptown | Found Surveybot 17 Chip 5863 | -9/Scraptown | Found Deep Structural Scanner 5873 | -9/Scraptown | Learned location of Warlord (-4) 5873 | -9/Scraptown | Learned 16 Research zone layouts 5873 | -9/Scraptown | Learned 8 Lower Caves zone layouts 5873 | -9/Scraptown | Learned 16 Lower Caves zone layouts 5873 | -9/Scraptown | Learned 20 Lower Caves zone layouts 5873 | -9/Scraptown | Learned 24 Upper Caves zone layouts 5873 | -9/Scraptown | Learned 16 Proximity Caves zone layouts 5873 | -9/Scraptown | Learned location of 2 exits from Factory 5873 | -9/Scraptown | Learned location of 1 exit from Proximity Caves 5873 | -9/Scraptown | Learned location of 2 exits from Proximity Caves 5966 | -9/Scraptown | Visited Sword Containment 5976 | -9/Scraptown | Found Prototype Slashing Weapon 5977 | -9/Scraptown | Identified Companion Sword 6008 | -9/Scraptown | Discovered new exit (range 10) 6108 | -9/Scraptown | Met Optimus 6108 | -9/Scraptown | Accepted into 0bPrime 6168 | -9/Scraptown | Identified exit to Factory 6169 | -9/Scraptown | Entered Factory 6169 | -6/Factory | Evolved 6 slots: Propulsion x3, Utility x3 6170 | -6/Factory | Identified exit to Lower Caves 6171 | -6/Factory | Identified exit to Factory 6296 | -6/Factory | Loaded intel: 8 recycling unit locations 6451 | -6/Factory | Build established: Scout 6528 | -6/Factory | Central database locked down 6571 | -6/Factory | Learned location of Protoforge (-2) 6664 | -6/Factory | Fabricated Cld. VTOL Module? 6775 | -6/Factory | Discovered exit to Factory (range 14) 6928 | -6/Factory | Spotted B-75 Beast 6954 | -6/Factory | Entered Lower Caves 6955 | -6/Lower Caves | Identified exit to Lower Caves 6977 | -6/Lower Caves | Build established: Hacker-Scout 6989 | -6/Lower Caves | Encountered a Warlord checkpoint 6991 | -6/Lower Caves | Learned 4 Factory zone layouts 7028 | -6/Lower Caves | Learned Factory stockpile data 7047 | -6/Lower Caves | Entered another Lower Caves area 7048 | -6/Lower Caves | Identified exit to Data Miner 7106 | -6/Lower Caves | Found Alien Artifact 7121 | -6/Lower Caves | Encountered a Warlord checkpoint 7188 | -6/Lower Caves | Entered Data Miner 7188 | -6/Data Miner | Discovered new exit (range 6) 7194 | -6/Data Miner | Met Data Miner 7203 | -6/Data Miner | Learned location of Section 7 (-2) 7203 | -6/Data Miner | Acquired the access code to Warlord's prototype stash 7207 | -6/Data Miner | Received God Mode back door access code from Data Miner 7213 | -6/Data Miner | Identified exit to Proximity Caves 7213 | -6/Data Miner | Entered Proximity Caves 7504 | -5/Proximity Caves | Entered Factory 7504 | -5/Factory | Evolved 2 slots: Utility x2 7505 | -5/Factory | Identified exit to Upper Caves 7509 | -5/Factory | Discovered new exit (range 15) 7515 | -5/Factory | Identified exit to Factory 7684 | -5/Factory | Discovered new exit (range 19) 7728 | -5/Factory | Repaired Adv. Sensor Array 7734 | -5/Factory | Fabricated Cld. VTOL Module? 7894 | -5/Factory | Fabricated Cld. VTOL Module? 7931 | -5/Factory | Fabricated Lgt. Fission Core? 8277 | -5/Factory | Fabricated Gravity Neutralizer (x1) 8314 | -5/Factory | Loaded intel: 8 recycling unit locations 8415 | -5/Factory | Repaired Adv. Terrain Scanner 8430 | -5/Factory | Discovered new exit (range 11) 8593 | -5/Factory | Central database locked down 8949 | -5/Factory | Cargo convoy interrupted 9002 | -5/Factory | Entered another Factory area 9002 | -4/Factory | Evolved 2 slots: Power x1, Utility x1 9138 | -4/Factory | Identified exit to Research 9147 | -4/Factory | Fabricated Cld. VTOL Module? 9231 | -4/Factory | Fabricated Cld. VTOL Module? 9366 | -4/Factory | Loaded intel: 8 recycling unit locations 9622 | -4/Factory | Discovered new exit (range 18) 9802 | -4/Factory | Fabricated Mni. Smartbomb Launcher (x1) 9871 | -4/Factory | Entered Research 9871 | -3/Research | Evolved 2 slots: Utility x2 9872 | -3/Research | Identified exit to Armory 9873 | -3/Research | Identified exit to Research 9943 | -3/Research | Loaded intel: 5 recycling unit locations 9993 | -3/Research | Found Prototype Device 9994 | -3/Research | Identified Exp. Focal Shield 10020 | -3/Research | Discovered new exit (range 14) 10096 | -3/Research | Garrison activated, responded to threat 10192 | -3/Research | Build established: Wizard-Scout 10339 | -3/Research | Discovered new exit (range 15) 10408 | -3/Research | Fabricated Cld. Impulse Thruster? 10613 | -3/Research | Entered another Research area 10613 | -2/Research | Evolved 2 slots: Utility x2 10614 | -2/Research | Identified exit to Access 10715 | -2/Research | Repaired Broken Cld. Impulse Thruster? 10788 | -2/Research | Loaded intel: 5 recycling unit locations 10952 | -2/Research | Identified exit to Quarantine 10980 | -2/Research | Repaired Cld. VTOL Module? 11064 | -2/Research | Spotted B-90 Cyclops 11088 | -2/Research | Fabricated Cld. Q-thruster? 11160 | -2/Research | Entered Quarantine 11259 | -2/Quarantine | Found Alien Artifact 11260 | -2/Quarantine | Identified Subatomic Replicator 11260 | -2/Quarantine | Forged Prototype Slashing Weapon 11280 | -2/Quarantine | Spotted Fortress 11296 | -2/Quarantine | Discovered new exit (range 6) 11296 | -2/Quarantine | Discovered new exit (range 7) 11297 | -2/Quarantine | Identified exit to Section 7 11297 | -2/Quarantine | Identified exit to Protoforge 11298 | -2/Quarantine | Entered Protoforge 11408 | -2/Protoforge | Spotted Hotshot 11408 | -2/Protoforge | Spotted Hotshot 11420 | -2/Protoforge | Superfortress began startup sequence 11424 | -2/Protoforge | Spotted AP7-3 11424 | -2/Protoforge | Spotted Overlord 11424 | -2/Protoforge | Spotted AP7-3 11430 | -2/Protoforge | Spotted SKR-2 11430 | -2/Protoforge | Spotted SKR-2 11430 | -2/Protoforge | Spotted SKR-2 11444 | -2/Protoforge | UFD initiated attack on Protoforge (Readiness: Maximal) 11444 | -2/Protoforge | Loaded intel: 3 recycling unit locations 11456 | -2/Protoforge | Spotted EXE-6 11456 | -2/Protoforge | Spotted EXE-6 11469 | -2/Protoforge | Scraphulk reinforcements arrived? 11497 | -2/Protoforge | Lost 3 parts (1p2u) 11497 | -2/Protoforge | Optimus greeted in Protoforge 11500 | -2/Protoforge | Lost 6 allies 11509 | -2/Protoforge | Found UFD Drillbomb 11522 | -2/Protoforge | Spotted EXE-6 11583 | -2/Protoforge | Installed UFD Drillbomb at designated target 11583 | -2/Protoforge | UFD reported confirmed Drillbomb installation 11653 | -2/Protoforge | Met 7R-MNS 11654 | -2/Protoforge | Found UFD Drillbomb 11699 | -2/Protoforge | Lost 3 allies 11718 | -2/Protoforge | Installed UFD Drillbomb at designated target 11718 | -2/Protoforge | UFD reported confirmed Drillbomb installation 11782 | -2/Protoforge | Found UFD Drillbomb 11785 | -2/Protoforge | Build established: Hacker-Sprinter 11793 | -2/Protoforge | Lost 3 allies 11847 | -2/Protoforge | Spotted Hotshot 11853 | -2/Protoforge | Spotted Striker 11857 | -2/Protoforge | Spotted Executioner 11857 | -2/Protoforge | Spotted Striker 11870 | -2/Protoforge | Spotted Executioner 11886 | -2/Protoforge | Lost 7 allies 11946 | -2/Protoforge | Spotted Striker 11953 | -2/Protoforge | Spotted Executioner 11970 | -2/Protoforge | Found Prototype Processor 11970 | -2/Protoforge | Identified Exp. Core Analyzer 11979 | -2/Protoforge | Found 0bPrime Scrap Suit 12010 | -2/Protoforge | Installed UFD Drillbomb at designated target 12010 | -2/Protoforge | UFD reported confirmed Drillbomb installation 12017 | -2/Protoforge | Found UFD Drillbomb 12077 | -2/Protoforge | Spotted Striker 12078 | -2/Protoforge | Spotted Striker 12159 | -2/Protoforge | Lost 12 allies 12201 | -2/Protoforge | Found Exp. Core Analyzer 12287 | -2/Protoforge | Installed UFD Drillbomb at designated target 12287 | -2/Protoforge | UFD reported confirmed Drillbomb installation 12318 | -2/Protoforge | Found UFD Drillbomb 12347 | -2/Protoforge | Installed UFD Drillbomb at designated target 12347 | -2/Protoforge | UFD reported confirmed Drillbomb installation 12371 | -2/Protoforge | Found UFD Drillbomb 12375 | -2/Protoforge | Spotted B-90 Cyclops 12378 | -2/Protoforge | Build established: Scavenger-Mutant 12415 | -2/Protoforge | Spotted Striker 12416 | -2/Protoforge | Spotted Striker 12421 | -2/Protoforge | Destroyed Striker 12421 | -2/Protoforge | Destroyed Striker 12434 | -2/Protoforge | Spotted Striker 12437 | -2/Protoforge | Spotted Striker 12438 | -2/Protoforge | Spotted Hotshot 12441 | -2/Protoforge | Spotted Hotshot 12441 | -2/Protoforge | Spotted Hotshot 12441 | -2/Protoforge | Spotted Hotshot 12445 | -2/Protoforge | Destroyed Hotshot 12447 | -2/Protoforge | Destroyed Hotshot 12455 | -2/Protoforge | Destroyed Hotshot 12467 | -2/Protoforge | Destroyed Hotshot 12485 | -2/Protoforge | Spotted Executioner 12505 | -2/Protoforge | Spotted Hotshot 12516 | -2/Protoforge | Spotted Hotshot 12521 | -2/Protoforge | Spotted Hotshot 12522 | -2/Protoforge | Spotted Hotshot 12540 | -2/Protoforge | Lost 11 allies 12548 | -2/Protoforge | Destroyed Hotshot 12581 | -2/Protoforge | Spotted Executioner 12582 | -2/Protoforge | Core integrity fell below 50% 12585 | -2/Protoforge | Spotted Hotshot 12585 | -2/Protoforge | Spotted Executioner 12585 | -2/Protoforge | Spotted Striker 12585 | -2/Protoforge | Spotted Hotshot 12592 | -2/Protoforge | Destroyed Hotshot 12598 | -2/Protoforge | Destroyed Striker 12612 | -2/Protoforge | Core integrity fell below 20% 12621 | -2/Protoforge | Lost 8 allies 12635 | -2/Protoforge | Spotted Striker 12641 | -2/Protoforge | Spotted Striker 12647 | -2/Protoforge | Lost 28 parts (5p12n10u1w) 12709 | -2/Protoforge | Lost 12 allies 12787 | -2/Protoforge | Forge Plexus network access discovered 12833 | -2/Protoforge | Destroyed 7 combat bots 12842 | -2/Protoforge | Spotted Decapitator 12924 | -2/Protoforge | Lost 3 allies 12929 | -2/Protoforge | Found Exp. Core Analyzer 12952 | -2/Protoforge | Found Adv. Kinecellerator 12956 | -2/Protoforge | Found Exp. Targeting Computer 12982 | -2/Protoforge | Lost 4 allies 13084 | -2/Protoforge | Spotted Executioner 13092 | -2/Protoforge | Spotted Striker 13093 | -2/Protoforge | Destroyed Striker 13122 | -2/Protoforge | Spotted Immortal 13180 | -2/Protoforge | Found UFD Drillbomb 13192 | -2/Protoforge | Found UFD Drillbomb 13202 | -2/Protoforge | Spotted Executioner 13202 | -2/Protoforge | Spotted Executioner 13208 | -2/Protoforge | Destroyed by Executioner with Helical Railgun Last Messages --------------- Treads. 13201_ N-04 Retriever collects 0bPrime Scrap Suit. 13202_ Slug penetrates G-73 Enforcer. The surroundings shift and blur. 13202_ Acquired 5 matter. 13202_ 02FEG-D destroyed. 13203_ Slug penetrates G-73 Enforcer. 13203_ P-80 Master destroyed. 13203_ N-04 Retriever collects Mak. Coolant Network. 13203_ N-04 Retriever collects Neutrino Core. 13204_ G-73 Enforcer destroyed. 13205_ N-04 Retriever collects Mak. Medium Armor Plating. 13207_ 0bP_NET: Lugger 043 inbound, all units not involved in other operations escort to target. 13208_ Penetrated by Slug. [Achievement: This Is Interesting...] Map ----- +----------------------------------------------------+ | ##### ##????????#############??????????????????? | | ##### ##????????##############?????????????????? | | ##????????##?????????###?????????????????? | | ###???######??????????##??????????????? | | !! ############?????????###?????????????"" | | * [%!! #######?###?????????###???????????? | | %!![%= ####??????#?????????##?????????? "" "" | | %!=!![ ####??????#?????????##????????? " | | !!!!%= ####??????#?????????##??????? " ?" " | | [![&[! ####??????#?????????##?????# " " "" | | %""#########??? ??#####+######?????# "" | | *=" #########??? ### ####?????# "" "" | | %[##############"##### " ##???????# """"" "" | | [%#### + ##### " ##?????#?# " | | [!# # # # ### ###???#??# " | | [!" # "#### ##?#???#?# """"" | | !%#""" " #### ####??????# " "" | | !![="" ; #### ;##??##?#?# """" | | %!!!![= " #### ;##???????# "" " | | %*![!!!! *[! " # #; ;#??#?#???# | | %%[[=[ !!= " ; #; ;#?#####??# "" | | !&*=% " " "" "" # ; ;##?###?### " % % | | %/=%%% %%% %%% ## # ;########## " | | %%[%%% %" % %% # ; ; ### ##### """"" | | !%!% %%%%%% %%%m # ; ; ## ##### " "" | | %%! %% &%%%% &%EE ; @; ## # ### " | | ===;%; ;&%;;;%%%% ; != # # ] #[!# % "" | | /[!!&!![; ;*;=!;%% =!!![[ ; ! !#*!!# %" | | !*! ;]% % %%;% %[*%[*=!;!*==!;;; # % | | ; "" %%[%; %%&%%&%/*;;"%!% n;# % % | | %% % %%""% %%%!n%%%=&=%!=%%!%%/ % %% | | """ ; " " %&% %%%%%%%%!%&%&%%%%%%/&%% " %% | | "" ; % " %!=%%%%%%%&%%%%%%%%/%!%""" % " | | """ " %" "" ;; [%m=![]=%%%%%[*%!#%!%!""%%%" =" | | % " " =!* |=%!%=!!%%!*!=!# %%"% %%!![ | | #"##""% % !*|%=% !!%%![!=!!!!!# % % %* | | #####"%;#;;#;##;#%[ % %%!%%=![[##### %=!%!%! | | # % # ### ; % % !!*[!!*= ## """"*%=[%! | | #""% " ###?## % *%=![%!= "#%% %""%%%%% | | #" % "" ##### = % [%!;[!= ## " %!% | | #" %"" ######;% % =*!!%%[ ! ##% % % "" | | """ % ##?### *% %*!%=!*!= " ## %"" %%" | | " " " ###### %% [!=[%%+= " ## "" ""% | | " "" #####; %% !h=[%%= " ## "" "" | | " """ ###### % %%![ " " ## " " | | " %% " ###" % % ; ## " | | #!!"%"##"" # #" % % # ## " " " | | #"" % %#%##!##%%% % # ## " """ | | % "=!%%%!!%%% % ""#"""#### " | | =!* "%%%!%!%%%" % % % ##### " " " | +----------------------------------------------------+ Best States ------------- Heat Dissipation 49 Energy Generation 55 Energy Capacity 540 Matter Stores 300 Matter Capacity 300 Sight Range 23 Robot Scan Range 18 Terrain Scan Range 20 Terrain Scan Density 1210 ECM Strength 2 Additional Mass Support 12 Base Temperature (-) 200 Armor Coverage 1075 Resistance: TH 10 Resistance: EM 20 Core Shielding 10 Weapon Shielding 90 Phase Shifting 15 Evasion (%) 84 Targeting Accuracy 12 Core Analysis 12 Recoil Reduction 1 Kinecelleration 50 Offensive Hacking 46 Defensive Hacking 24 Authchip Count 4 Item Schematics ----------------- Mni. Grenade Launcher | -9/Materials | Hacked Wheel | -9/Materials | Scanalyzed Cld. VTOL Module | -6/Factory | Hacked Hacking Suite | -6/Factory | Scanalyzed Lgt. Fission Core | -6/Factory | Scanalyzed Hvy. Gauss Cannon | -6/Data Miner | Free Adv. Transmission Jammer | -6/Data Miner | Free Imp. Linear Gravjet | -6/Data Miner | Free Enh. Coil Gun | -6/Data Miner | Free Imp. Matter Compressor | -6/Data Miner | Free Enh. Flexi-carbon Leg | -6/Data Miner | Free Lgt. Regenerative Plating | -6/Data Miner | Free Combat Drone Bay | -6/Data Miner | Free Gravity Neutralizer | -5/Factory | Hacked Cld. Nuclear Pulse Thruster | -4/Factory | Scanalyzed Mni. Smartbomb Launcher | -4/Factory | Hacked Adv. Reaction Control System | -4/Factory | Hacked Cld. Impulse Thruster | -3/Research | Scanalyzed Cld. Q-thruster | -2/Research | Hacked Exp. Signal Interpreter | -2/Research | Hacked Robot Schematics ------------------ O-16 Technician | -9/Materials | Hacked B-60 Warrior | -6/Data Miner | Free H-66 Slayer | -6/Data Miner | Free R-10 Processor | -6/Data Miner | Free Fabricated ------------ Cld. VTOL Module | x1 | -6/Factory | Authchip Cld. VTOL Module | x1 | -5/Factory | Authchip Cld. VTOL Module | x1 | -5/Factory | Authchip Lgt. Fission Core | x2 | -5/Factory | Authchip Gravity Neutralizer | x1 | -5/Factory | Authchip Cld. VTOL Module | x1 | -4/Factory | Authchip Cld. VTOL Module | x1 | -4/Factory | Authchip Mni. Smartbomb Launcher | x1 | -4/Factory | Authchip Cld. Impulse Thruster | x1 | -3/Research | Authchip Cld. Q-thruster | x1 | -2/Research | Authchip Repaired ---------- Adv. Sensor Array | 37% | -5/Factory Adv. Terrain Scanner | 45% | -5/Factory Cld. Impulse Thruster | 98% | -2/Research | Broken Cld. VTOL Module | 35% | -2/Research Studied --------- Flight Unit | -9/Materials | Hacked Wheel | -9/Materials | Hacked Autogun | -9/Materials | Hacked Mni. Grenade Launcher | -9/Materials | Hacked Lgt. Fission Core | -5/Factory | Hacked Mic. Antimatter Reactor | -3/Research | Hacked Alien Tech Used ----------------- Subatomic Replicator Achievements -------------- Explorer Fine I'll Do It Myself Friends Forever Inventory(Loot) Network Effect Nope Physics Protects Super-what Now? This Is Interesting... We Are One Challenges ------------ None Game ------ Seed FissionSalvagingWand Manual? 0 Play Time 10:05:44 Cumulative 102.9 hours Start 2026.01.08 @ 19:57:50 End 2026.01.09 @ 19:40:02 Sessions 3 Manual Loads 0 Difficulty Rogue Special Mode None Game No. 34 Rogue 34 Adventurer 0 Explorer 0 Win Type - Total 4 Types 3/0/1/0/0/0/0/0/0/0 Lore% 28 Gallery% 32 Achievement% 34 Wizard Run 0 Options --------- Layout 1 ASCII 0 Keyboard 0 Movement Mouse Keybinds 0 Fullscreen 1 Font 24/Smallcaps Map View 50x35 Zoom Use 0% Tactical HUD 1 Map Filters NONE Filters NONE Steam 1 RUN: df71ffc4-8a20-491a-972d-2083d4d261b6